fUST/lending_fUST_20260519
["ID","MTS","AMOUNT","RATE_DAILY","PERIOD"]
[422601734,1779141039000,-1968.71451612,0.00014495,2]
[422601732,1779141039000,-1968.71451612,0.00014448,2]
[422601723,1779141039000,-192.059474,0.00014328,2]
[422601737,1779141039000,-151.51,0.000145,2]
[422601733,1779141039000,-1968.71451612,0.00014458,2]
[422601731,1779141039000,-151.51,0.000144,2]
[422601735,1779141039000,-166.0,0.000145,2]
[422601730,1779141039000,-551.554449,0.000144,2]
[422601727,1779141039000,-234.76513,0.00014388,2]
[422601726,1779141039000,-197.382565,0.00014388,2]
[422601728,1779141039000,-160.0,0.000144,2]
[422601724,1779141039000,-224.118948,0.00014328,2]
[422601729,1779141039000,-355.777224,0.000144,2]
[422601779,1779141040000,-225.39101539,0.000149,2]
[422601773,1779141040000,-583.33333334,0.000149,2]
[422601774,1779141040000,-1875.80732256,0.000149,2]
[422601775,1779141040000,-338.08652311,0.000149,2]
[422601776,1779141040000,-338.08652309,0.000149,2]
[422601772,1779141040000,-460.4252298,0.000149,2]
[422601771,1779141040000,-460.4252298,0.000149,2]
[422601777,1779141040000,-338.08652309,0.000149,2]
[422601780,1779141040000,-225.39101539,0.000149,2]
[422601783,1779141040000,-1968.71451612,0.00014954,2]
[422601778,1779141040000,-225.39101542,0.000149,2]
[422601782,1779141040000,-1968.71451612,0.00014933,2]
[422601787,1779141040000,-166.0,0.00015,2]
[422601789,1779141040000,-3466.50906577,0.00015,10]
[422601785,1779141040000,-1968.71451612,0.00014995,2]
[422601788,1779141040000,-3314.46514613,0.00015,10]
[422601786,1779141040000,-1968.71451612,0.00014996,2]
[422601784,1779141040000,-15721.44056478,0.0001499,30]
[422601781,1779141040000,-1968.71451612,0.00014904,2]
[422601791,1779141041000,-581.59161548,0.00015,10]
[422601792,1779141041000,-199.66595469,0.00015,2]
[422601793,1779141041000,-1031.91429968,0.00015,2]
[422601797,1779141041000,-3152.10891276,0.00015,2]
[422601796,1779141041000,-44.77514273,0.00015,2]
[422601795,1779141041000,-346.9145787,0.00015,2]
[422601794,1779141041000,-152.86360464,0.00015,2]
[422601819,1779141047000,-10633.37431352,0.00015,2]
[422601821,1779141047000,-1930.24521452,0.00015,2]
[422601820,1779141047000,-109963.84543252,0.00015,2]
[422601818,1779141047000,-196.87652619,0.0001372,2]
[422601822,1779141109000,163.0764904,0.00010806,2]
[422601868,1779142231000,-151.0,9.421e-05,2]
[422601870,1779142231000,-151.0,9.515e-05,2]
[422601864,1779142231000,-151.0,6.564e-05,2]
[422601872,1779142231000,-151.0,9.612e-05,2]
[422601866,1779142231000,-249.23089985,8.14e-05,2]
[422601876,1779142231000,-161.68513202,0.00010672,2]
[422601862,1779142231000,-159.496813,6.264e-05,2]
[422601857,1779142231000,-5000.0,6.078e-05,2]
[422601860,1779142231000,-211.21262699,6.14e-05,2]
[422601873,1779142231000,-287.24917271,0.0001014,2]
[422601878,1779142231000,-74.5235096,0.00010806,2]
[422601897,1779142231000,-185.0,0.00012312,2]
[422601885,1779142231000,-159.496813,0.00012282,2]
[422601884,1779142231000,-570.23071411,0.00012212,2]
[422601903,1779142231000,-180.03240583,0.00013699,2]
[422601901,1779142231000,-199.0,0.00012603,3]
[422601899,1779142231000,-443.0,0.00012312,2]
[422601895,1779142231000,-742.0,0.00012312,2]
[422601905,1779142231000,-198.3840176,0.00013699,2]
[422601887,1779142231000,-300.0,0.00012311,2]
[422601893,1779142231000,-647.0,0.00012312,2]
[422601880,1779142231000,-166.0,0.00010959,3]
[422601881,1779142231000,-325.26744557,0.0001214,2]
[422601890,1779142231000,-1413.0,0.00012312,2]
[422601925,1779142232000,-179.24543092,0.00014443,2]
[422601940,1779142232000,-647.48195958,0.00014898,2]
[422601929,1779142232000,-202.0,0.00014795,3]
[422601933,1779142232000,-325.4246227,0.00014841,2]
[422601931,1779142232000,-151.0,0.00014841,2]
[422601927,1779142232000,-196.8765262,0.000147,2]
[422601936,1779142232000,-500.0,0.00014898,2]
[422601915,1779142232000,-557.57882651,0.00014246,3]
[422601909,1779142232000,-1000.0,0.00013699,2]
[422601921,1779142232000,-500.0,0.0001442,2]
[422601919,1779142232000,-280.74258679,0.00014338,2]
[422601917,1779142232000,-1013.4084271,0.00014307,2]
[422601944,1779142232000,-500.0,0.00014898,2]
[422601907,1779142232000,-1000.0,0.00013699,2]
[422601913,1779142232000,-537.6845,0.00014246,3]
[422601922,1779142232000,-500.0,0.0001442,2]
[422601938,1779142232000,-163.7375505,0.00014898,2]
[422601911,1779142232000,-363.28571843,0.0001414,2]
[422601942,1779142232000,-500.0,0.00014898,2]
[422601934,1779142232000,-5000.0,0.00014897,15]
[422601977,1779142232000,-379.62178139,0.00014898,2]
[422601975,1779142232000,-500.0,0.00014898,2]
[422601960,1779142232000,-500.0,0.00014898,2]
[422601958,1779142232000,-500.0,0.00014898,2]
[422601950,1779142232000,-500.0,0.00014898,2]
[422601954,1779142232000,-500.0,0.00014898,2]
[422601952,1779142232000,-500.0,0.00014898,2]
[422601956,1779142232000,-500.0,0.00014898,2]
[422601971,1779142232000,-500.0,0.00014898,2]
[422601969,1779142232000,-500.0,0.00014898,2]
[422601963,1779142232000,-500.0,0.00014898,2]
[422601946,1779142232000,-500.0,0.00014898,2]
[422601965,1779142232000,-187.38105045,0.00014898,2]
[422601962,1779142232000,-500.0,0.00014898,2]
[422601967,1779142232000,-500.0,0.00014898,2]
[422601948,1779142232000,-500.0,0.00014898,2]
[422601973,1779142232000,-500.0,0.00014898,2]
[422602110,1779142238000,-500.0,0.00014898,2]
[422602112,1779142238000,-300.0,0.00014898,2]
[422602123,1779142238000,-500.0,0.00014898,2]
[422602122,1779142238000,-500.0,0.00014898,2]
[422602113,1779142238000,-467.1023814,0.00014898,2]
[422602136,1779142238000,-500.0,0.00014898,2]
[422602116,1779142238000,-500.0,0.00014898,2]
[422602126,1779142238000,-500.0,0.00014898,2]
[422602142,1779142238000,-500.0,0.00014898,2]
[422602128,1779142238000,-500.0,0.00014898,2]
[422602130,1779142238000,-500.0,0.00014898,2]
[422602132,1779142238000,-221.05819498,0.00014898,2]
[422602134,1779142238000,-500.0,0.00014898,2]
[422602138,1779142238000,-500.0,0.00014898,2]
[422602068,1779142238000,-500.0,0.00014898,2]
[422602140,1779142238000,-500.0,0.00014898,2]
[422602120,1779142238000,-500.0,0.00014898,2]
[422602146,1779142238000,-500.0,0.00014898,2]
[422602117,1779142238000,-511.42429366,0.00014898,2]
[422602107,1779142238000,-500.0,0.00014898,2]
[422602100,1779142238000,-500.0,0.00014898,2]
[422602104,1779142238000,-500.0,0.00014898,2]
[422602071,1779142238000,-500.0,0.00014898,2]
[422602066,1779142238000,-500.0,0.00014898,2]
[422602064,1779142238000,-500.0,0.00014898,2]
[422602060,1779142238000,-120.37821861,0.00014898,2]
[422602062,1779142238000,-500.0,0.00014898,2]
[422602077,1779142238000,-441.92100872,0.00014898,2]
[422602072,1779142238000,-500.0,0.00014898,2]
[422602074,1779142238000,-500.0,0.00014898,2]
[422602079,1779142238000,-58.07899128,0.00014898,2]
[422602083,1779142238000,-500.0,0.00014898,2]
[422602081,1779142238000,-500.0,0.00014898,2]
[422602085,1779142238000,-500.0,0.00014898,2]
[422602087,1779142238000,-500.0,0.00014898,2]
[422602089,1779142238000,-500.0,0.00014898,2]
[422602093,1779142238000,-500.0,0.00014898,2]
[422602095,1779142238000,-500.0,0.00014898,2]
[422602091,1779142238000,-500.0,0.00014898,2]
[422602097,1779142238000,-500.0,0.00014898,2]
[422602102,1779142238000,-500.0,0.00014898,2]
[422602106,1779142238000,-500.0,0.00014898,2]
[422602156,1779142238000,-500.0,0.00014898,2]
[422602158,1779142238000,-500.0,0.00014898,2]
[422602144,1779142238000,-500.0,0.00014898,2]
[422602210,1779142238000,-200.0,0.00014937,2]
[422602197,1779142238000,-142190.37480426,0.00014899,2]
[422602212,1779142238000,-500.0,0.00014999,2]
[422602194,1779142238000,-500.0,0.00014898,2]
[422602199,1779142238000,-28749.07058135,0.00014899,2]
[422602192,1779142238000,-226.41410249,0.00014898,2]
[422602214,1779142238000,-500.0,0.00014999,2]
[422602216,1779142238000,-500.0,0.00014999,2]
[422602207,1779142238000,-486.11111111,0.000149,2]
[422602218,1779142238000,-549.41801227,0.00014999,2]
[422602220,1779142238000,-500.0,0.00014999,2]
[422602231,1779142238000,-92908.47540636,0.00015,2]
[422602225,1779142238000,-500.0,0.00014999,2]
[422602223,1779142238000,-500.0,0.00014999,2]
[422602233,1779142238000,-69954.05598382,0.00015,2]
[422602226,1779142238000,-614907.87805389,0.00015,2]
[422602236,1779142238000,-6874.6232826,0.00015,2]
[422602154,1779142238000,-500.0,0.00014898,2]
[422602229,1779142238000,-24002.19573242,0.00015,2]
[422602208,1779142238000,-486.11111111,0.000149,2]
[422602177,1779142238000,-500.0,0.00014898,2]
[422602204,1779142238000,-486.11111111,0.000149,2]
[422602202,1779142238000,-1688.22659025,0.000149,2]
[422602148,1779142238000,-500.0,0.00014898,2]
[422602150,1779142238000,-500.0,0.00014898,2]
[422602160,1779142238000,-500.0,0.00014898,2]
[422602162,1779142238000,-500.0,0.00014898,2]
[422602164,1779142238000,-500.0,0.00014898,2]
[422602152,1779142238000,-500.0,0.00014898,2]
[422602170,1779142238000,-500.0,0.00014898,2]
[422602168,1779142238000,-500.0,0.00014898,2]
[422602166,1779142238000,-500.0,0.00014898,2]
[422602179,1779142238000,-500.0,0.00014898,2]
[422602175,1779142238000,-500.0,0.00014898,2]
[422602184,1779142238000,-500.0,0.00014898,2]
[422602180,1779142238000,-500.0,0.00014898,2]
[422602186,1779142238000,-500.0,0.00014898,2]
[422602182,1779142238000,-500.0,0.00014898,2]
[422602188,1779142238000,-500.0,0.00014898,2]
[422602191,1779142238000,-500.0,0.00014898,2]
[422602201,1779142238000,-428.808,0.000149,2]
[422602172,1779142238000,-500.0,0.00014898,2]
[422602441,1779142240000,-3642.5814876,0.00014897,15]
[422602443,1779142240000,-7927.91330352,0.00015,2]
[422602439,1779142240000,-1762.73146298,0.00014749,2]
[422602828,1779142246000,-320.42610017,0.00015,2]
[422602827,1779142246000,-1443.25030795,0.00015,2]
[422602830,1779142248000,-2694.73,0.00015,2]
[422602831,1779142248000,-677953.22273706,0.00015,2]
[422602832,1779142248000,-2136.10751466,0.00015,2]
[422602829,1779142248000,-44155.50978954,0.00015,2]
[422602833,1779142249000,-2117.33197332,0.00015,2]
[422602880,1779143431000,-3179.7982655,0.00011893,2]
[422603262,1779143440000,-13.28408198,0.00014726,2]
[422603257,1779143440000,-227.61589115,0.00014238,2]
[422603247,1779143440000,-740.0,0.00012769,2]
[422603258,1779143440000,-536.702,0.00014452,2]
[422603260,1779143440000,-486.71591802,0.00014726,2]
[422603255,1779143440000,-1000.0,0.00013699,2]
[422603249,1779143440000,-185.0,0.00012769,2]
[422603253,1779143440000,-1000.0,0.00013699,2]
[422603242,1779143440000,-2203.0,0.00012769,2]
[422603244,1779143440000,-1413.0,0.00012769,2]
[422603240,1779143440000,-300.0,0.00012768,2]
[422603232,1779143440000,-192.89482301,0.00012238,2]
[422603234,1779143440000,-160.0,0.00012427,7]
[422603230,1779143440000,-1820.2017345,0.00011893,2]
[422603236,1779143440000,-161.68513202,0.00012558,2]
[422603238,1779143440000,-309.0,0.00012603,3]
[422603251,1779143440000,-258.20943543,0.00013699,2]
[422603245,1779143440000,-443.0,0.00012769,2]
[422603264,1779143440000,-500.0,0.00014726,2]
[422603289,1779143440000,-351.89103528,0.00014899,2]
[422603268,1779143440000,-376.55187714,0.000148,2]
[422603297,1779143440000,-500.0,0.00014899,2]
[422603301,1779143440000,-500.0,0.00014899,2]
[422603299,1779143440000,-500.0,0.00014899,2]
[422603303,1779143440000,-207.64564542,0.00014899,2]
[422603295,1779143440000,-500.0,0.00014899,2]
[422603266,1779143440000,-168.0,0.00014795,3]
[422603307,1779143440000,-500.0,0.00014899,2]
[422603305,1779143440000,-292.35435458,0.00014899,2]
[422603292,1779143440000,-500.0,0.00014899,2]
[422603293,1779143440000,-627.47621009,0.00014899,2]
[422603287,1779143440000,-148.10896472,0.00014899,2]
[422603281,1779143440000,-500.0,0.00014899,2]
[422603279,1779143440000,-325.8428722,0.00014873,2]
[422603283,1779143440000,-500.0,0.00014899,2]
[422603285,1779143440000,-500.0,0.00014899,2]
[422603275,1779143440000,-325.9226287,0.00014873,2]
[422603273,1779143440000,-809.83605969,0.000148,2]
[422603271,1779143440000,-736.42400841,0.000148,2]
[422603270,1779143440000,-835.11588737,0.000148,2]
[422603323,1779143441000,-500.0,0.00014899,2]
[422603321,1779143441000,-500.0,0.00014899,2]
[422603319,1779143441000,-500.0,0.00014899,2]
[422603317,1779143441000,-500.0,0.00014899,2]
[422603309,1779143441000,-491.38108577,0.00014899,2]
[422603313,1779143441000,-500.0,0.00014899,2]
[422603311,1779143441000,-500.0,0.00014899,2]
[422603325,1779143441000,-500.0,0.00014899,2]
[422603315,1779143441000,-500.0,0.00014899,2]
[422603327,1779143441000,-500.0,0.00014899,2]
[422603336,1779143441000,-473.57376399,0.000149,2]
[422603333,1779143441000,-5069.92231053,0.000149,2]
[422603350,1779143441000,-29343.3616104,0.00015,2]
[422603344,1779143441000,-456.5775621,0.00014914,2]
[422603346,1779143441000,-458.1400186,0.00014914,2]
[422603342,1779143441000,-727691.32233405,0.000149,2]
[422603329,1779143441000,-502.73061035,0.00014899,2]
[422603338,1779143441000,-1756.27966031,0.000149,2]
[422603348,1779143441000,-343.047,0.00014999,2]
[422603331,1779143441000,-159.211639,0.00014899,2]
[422603340,1779143441000,-13016.95263226,0.000149,2]
[422603700,1779143443000,-1617.10945299,0.00015,30]
[422603694,1779143443000,-4143.0169926,0.00015,30]
[422603698,1779143443000,-911.91340463,0.00015,30]
[422603692,1779143443000,-1012.16871165,0.00015,30]
[422603686,1779143443000,-1013.27128735,0.00015,7]
[422603696,1779143443000,-2120.85319521,0.00015,30]
[422603688,1779143443000,-250.0,0.00015,2]
[422603689,1779143443000,-4810.20075139,0.00015,30]
[422603663,1779143443000,-462643.29838634,0.00015,2]
[422603665,1779143443000,-28408.56175041,0.00015,10]
[422603684,1779143443000,-879.79512131,0.00015,10]
[422603926,1779143554000,694.0,0.000178,120]
[422603928,1779143603000,1000.28,0.000178,120]
[422603929,1779143627000,1002.72,0.000178,120]
[422604377,1779144641000,-200.0,0.00012471,2]
[422604407,1779144641000,-599.60298507,0.00014319,2]
[422604403,1779144641000,-15.96420839,0.00014264,2]
[422604398,1779144641000,-229.84914546,0.00014064,2]
[422604401,1779144641000,-557.5788265,0.00014209,2]
[422604395,1779144641000,-659.3121639,0.00013699,2]
[422604391,1779144641000,-1000.0,0.00013699,2]
[422604393,1779144641000,-340.6878361,0.00013699,2]
[422604389,1779144641000,-218.758,0.00013228,2]
[422604387,1779144641000,-1413.0,0.00013228,2]
[422604369,1779144641000,-258.0,0.00012055,3]
[422604371,1779144641000,-194.78741141,0.00012064,2]
[422604375,1779144641000,-210.31085155,0.00012138,2]
[422604385,1779144641000,-2200.0,0.00013228,2]
[422604383,1779144641000,-300.0,0.00013227,2]
[422604381,1779144641000,-161.68513202,0.00013134,2]
[422604379,1779144641000,-150.5,0.00013,2]
[422604373,1779144641000,-333.90076892,0.00012127,3]
[422604406,1779144641000,-562.24503469,0.00014264,2]
[422604427,1779144641000,-500.0,0.00014999,2]
[422604409,1779144641000,-274.437,0.00014846,2]
[422604443,1779144641000,-500.0,0.00014999,2]
[422604439,1779144641000,-112.30513645,0.00014999,2]
[422604445,1779144641000,-263.24682881,0.00014999,2]
[422604400,1779144641000,-537.6845,0.00014154,2]
[422604447,1779144641000,-2219.85046615,0.00015,30]
[422604437,1779144641000,-500.0,0.00014999,2]
[422604435,1779144641000,-500.0,0.00014999,2]
[422604433,1779144641000,-500.0,0.00014999,2]
[422604416,1779144641000,-5208.2009916,0.00014891,2]
[422604441,1779144641000,-339.60629079,0.00014999,2]
[422604420,1779144641000,-243.05555555,0.00014934,2]
[422604418,1779144641000,-243.05555557,0.000149,2]
[422604414,1779144641000,-1441.70641936,0.00014891,2]
[422604429,1779144641000,-196.72428323,0.00014999,2]
[422604425,1779144641000,-500.0,0.00014998,2]
[422604423,1779144641000,-162.380719,0.00014991,2]
[422604411,1779144641000,-28643.30821976,0.00014891,2]
[422604421,1779144641000,-243.05555555,0.00014968,2]
[422604431,1779144641000,-351.02351544,0.00014999,2]
[422604679,1779144643000,-4618.65454512,0.00015,30]
[422604680,1779144643000,-1115.78353468,0.00015,30]
[422604697,1779144647000,-1326.53801658,0.00015,30]
[422604802,1779145832000,-161.0,0.00010959,3]
[422604795,1779145832000,-196.55455556,0.00010411,2]
[422604789,1779145832000,-5000.0,0.00010151,2]
[422604799,1779145832000,-724.0,0.00010462,2]
[422604797,1779145832000,-300.0,0.00010462,2]
[422604792,1779145832000,-1426.4985,0.00010254,2]
[422604793,1779145832000,-4113.71092211,0.00010358,2]
[422604804,1779145832000,-592.89389905,0.00011047,2]
[422604817,1779145832000,-2209.24399067,0.00011547,2]
[422604819,1779145832000,-2539.33295282,0.00011647,2]
[422604815,1779145832000,-420.0,0.00011503,2]
[422604821,1779145832000,-2642.3046376,0.00011747,2]
[422604809,1779145832000,-1879.15502868,0.00011347,2]
[422604824,1779145832000,-2001.85362183,0.00011947,2]
[422604807,1779145832000,-259.39030822,0.00011258,2]
[422604812,1779145832000,-13154.16304681,0.00011347,2]
[422604814,1779145832000,-2129.95195296,0.00011447,2]
[422604806,1779145832000,-1105.24658369,0.00011147,2]
[422604857,1779145839000,-1413.0,0.00013228,2]
[422604860,1779145839000,-5497.15822752,0.00013547,2]
[422604864,1779145839000,-500.0,0.00013646,2]
[422604867,1779145839000,-487.24665423,0.00013646,2]
[422604865,1779145839000,-500.0,0.00013646,2]
[422604863,1779145839000,-474.59750615,0.00013646,2]
[422604872,1779145839000,-500.0,0.00013646,2]
[422604862,1779145839000,-500.0,0.00013646,2]
[422604861,1779145839000,-168.19192595,0.00013547,2]
[422604868,1779145839000,-500.0,0.00013646,2]
[422604859,1779145839000,-5612.77078543,0.00013447,2]
[422604876,1779145839000,-500.0,0.00013646,2]
[422604871,1779145839000,-500.0,0.00013646,2]
[422604866,1779145839000,-12.75334577,0.00013646,2]
[422604858,1779145839000,-5280.93794379,0.00013247,2]
[422604856,1779145839000,-5071.79029426,0.00013147,2]
[422604855,1779145839000,-4949.10510216,0.00013047,2]
[422604852,1779145839000,-4617.27226053,0.00012847,2]
[422604870,1779145839000,-500.0,0.00013646,2]
[422604853,1779145839000,-4775.01036465,0.00012947,2]
[422604849,1779145839000,-4181.45050544,0.00012547,2]
[422604850,1779145839000,-587.0,0.00012647,2]
[422604851,1779145839000,-4478.23043504,0.00012747,2]
[422604847,1779145839000,-231.93437557,0.00012411,2]
[422604848,1779145839000,-3953.60657726,0.00012447,2]
[422604846,1779145839000,-3859.68880142,0.00012347,2]
[422604844,1779145839000,-3504.17501896,0.00012147,2]
[422604845,1779145839000,-3529.59983927,0.00012247,2]
[422604842,1779145839000,-1152.80370041,0.00011947,2]
[422604843,1779145839000,-3199.51087712,0.00012047,2]
[422604854,1779145839000,-161.68513202,0.00013009,2]
[422604875,1779145839000,-300.32338308,0.00013646,2]
[422604877,1779145839000,-500.0,0.00013646,2]
[422604873,1779145839000,-500.0,0.00013646,2]
[422604903,1779145839000,-27979.26056352,0.0001425,2]
[422604907,1779145839000,-599.60298507,0.00014414,2]
[422604906,1779145839000,-267.31419557,0.00014411,2]
[422604905,1779145839000,-578.20924308,0.00014359,2]
[422604902,1779145839000,-537.6845,0.00014249,2]
[422604904,1779145839000,-557.5788265,0.00014304,2]
[422604901,1779145839000,-500.0,0.00014249,2]
[422604900,1779145839000,-168.0,0.00014247,3]
[422604897,1779145839000,-1000.0,0.00013699,2]
[422604899,1779145839000,-219.55,0.00013982,2]
[422604896,1779145839000,-1000.0,0.00013699,2]
[422604898,1779145839000,-5962.13008308,0.00013747,2]
[422604894,1779145839000,-500.0,0.00013646,2]
[422604891,1779145839000,-500.0,0.00013646,2]
[422604890,1779145839000,-500.0,0.00013646,2]
[422604895,1779145839000,-5944.60362706,0.00013647,2]
[422604893,1779145839000,-500.0,0.00013646,2]
[422604878,1779145839000,-500.0,0.00013646,2]
[422604874,1779145839000,-500.0,0.00013646,2]
[422604869,1779145839000,-500.0,0.00013646,2]
[422604880,1779145839000,-500.0,0.00013646,2]
[422604892,1779145839000,-500.0,0.00013646,2]
[422604881,1779145839000,-500.0,0.00013646,2]
[422604879,1779145839000,-500.0,0.00013646,2]
[422604887,1779145839000,-500.0,0.00013646,2]
[422604885,1779145839000,-500.0,0.00013646,2]
[422604882,1779145839000,-500.0,0.00013646,2]
[422604888,1779145839000,-500.0,0.00013646,2]
[422604884,1779145839000,-500.0,0.00013646,2]
[422604886,1779145839000,-500.0,0.00013646,2]
[422604889,1779145839000,-500.0,0.00013646,2]
[422604883,1779145839000,-191.07291925,0.00013646,2]
[422604914,1779145840000,-500.0,0.0001459,2]
[422604910,1779145840000,-644.79446246,0.00014524,2]
[422604908,1779145840000,-621.78829552,0.00014469,2]
[422604909,1779145840000,-500.0,0.00014523,2]
[422604911,1779145840000,-668.65185757,0.00014579,2]
[422604913,1779145840000,-500.0,0.0001459,2]
[422604912,1779145840000,-500.0,0.0001459,2]
[422604915,1779145840000,-500.0,0.0001459,2]
[422604921,1779145840000,-600.0,0.0001459,2]
[422604919,1779145840000,-500.0,0.0001459,2]
[422604917,1779145840000,-500.0,0.0001459,2]
[422604918,1779145840000,-321.95612279,0.0001459,2]
[422604920,1779145840000,-500.0,0.0001459,2]
[422604923,1779145840000,-325.80027339,0.00014591,2]
[422604922,1779145840000,-161559.44166632,0.00014591,2]
[422604924,1779145840000,-76078.24424539,0.00014591,2]
[422604916,1779145840000,-500.0,0.0001459,2]
[422604947,1779145847000,-1365.08688612,0.00014591,2]
[422604948,1779145847000,-6817.66242005,0.00014591,2]
[422604946,1779145847000,-16476.47080799,0.00014591,2]
[422604949,1779145847000,-338.71666673,0.00014591,2]
[422605044,1779147032000,-500.0,0.00013537,2]
[422605048,1779147032000,-500.0,0.00013537,2]
[422605033,1779147032000,-500.0,0.00013537,2]
[422605029,1779147032000,-500.0,0.00013537,2]
[422605028,1779147032000,-500.0,0.00013537,2]
[422605025,1779147032000,-500.0,0.00013537,2]
[422605011,1779147032000,-155.84,9.723e-05,2]
[422605015,1779147032000,-1500.0,0.0001,30]
[422605013,1779147032000,-155.85,9.725e-05,2]
[422605017,1779147032000,-177.0,0.00010959,3]
[422605023,1779147032000,-161.68513202,0.00013418,2]
[422605021,1779147032000,-248.38835052,0.00013388,2]
[422605046,1779147032000,-500.0,0.00013537,2]
[422605007,1779147032000,-5000.0,9.248e-05,2]
[422605009,1779147032000,-182.63849303,9.388e-05,2]
[422605005,1779147032000,-2306.97076253,9.156e-05,2]
[422605019,1779147032000,-215.51342178,0.00011388,2]
[422605031,1779147032000,-500.0,0.00013537,2]
[422605042,1779147032000,-500.0,0.00013537,2]
[422605035,1779147032000,-500.0,0.00013537,2]
[422605076,1779147032000,-500.0,0.00014797,2]
[422605078,1779147032000,-5186.0343749,0.000148,2]
[422605074,1779147032000,-500.0,0.00014523,2]
[422605072,1779147032000,-175.64,0.00014479,2]
[422605070,1779147032000,-500.0,0.00014249,2]
[422605080,1779147032000,-2307.32614006,0.000148,2]
[422605060,1779147032000,-1000.0,0.0001387,2]
[422605068,1779147032000,-326.7143715,0.00014126,2]
[422605066,1779147032000,-151.0,0.00014126,2]
[422605064,1779147032000,-372.9902601,0.00014052,2]
[422605062,1779147032000,-151.0,0.00014052,2]
[422605054,1779147032000,-185.0,0.00013645,2]
[422605052,1779147032000,-2202.0,0.00013645,2]
[422605058,1779147032000,-1000.0,0.00013699,2]
[422605056,1779147032000,-443.0,0.00013645,2]
[422605040,1779147032000,-500.0,0.00013537,2]
[422605038,1779147032000,-500.0,0.00013537,2]
[422605050,1779147032000,-810.54052604,0.00013537,2]
[422605352,1779147038000,-2721.24019379,0.00014652,2]
[422605357,1779147041000,-359.99275684,0.00014652,2]
[422605356,1779147041000,-325.99178291,0.00014652,2]
[422605365,1779147044000,-1037.38318,0.00014652,2]
[422605368,1779147047000,-776.81878444,0.000148,2]
[422605367,1779147047000,-555.39208646,0.00014652,2]
[422605385,1779147964000,1220.55,7e-05,10]
[422605391,1779148231000,-5000.0,6.416e-05,2]
[422605392,1779148231000,-169.70768772,6.629e-05,2]
[422605396,1779148231000,-183.0,0.00010959,3]
[422605395,1779148231000,-230.8024553,0.00010629,2]
[422605397,1779148231000,-120.99487947,0.00012629,2]
[422605393,1779148231000,-164.757806,6.747e-05,2]
[422605394,1779148231000,-200.25507151,8.629e-05,2]
[422605413,1779148238000,-140.35495962,0.00012629,2]
[422605416,1779148238000,-563.86506238,0.000134,2]
[422605451,1779148238000,-1000.0,0.00013699,2]
[422605449,1779148238000,-1000.0,0.00013699,2]
[422605453,1779148238000,-154.66,0.00014082,2]
[422605455,1779148238000,-500.0,0.00014249,2]
[422605457,1779148238000,-500.0,0.00014523,2]
[422605459,1779148238000,-291.89722289,0.00014629,2]
[422605446,1779148238000,-3469.1816891,0.00013643,2]
[422605444,1779148238000,-161.68513202,0.00013599,2]
[422605461,1779148238000,-151.52303799,0.00014796,2]
[422605466,1779148238000,-175.64,0.00014797,2]
[422605468,1779148238000,-319.84888038,0.00014799,2]
[422605464,1779148238000,-500.0,0.00014797,2]
[422605442,1779148238000,-933.56403762,0.000134,2]
[422605578,1779148243000,-180.15111962,0.00014799,2]
[422605580,1779148243000,-500.0,0.00014896,2]
[422605579,1779148243000,-26787.13852977,0.00014896,2]
[422605581,1779148243000,-287.41003066,0.00014896,2]
[422605613,1779148246000,-250.0,0.00014999,2]
[422605589,1779148246000,-5745.92318958,0.00014896,2]
[422605590,1779148246000,-182.29166667,0.000149,2]